[Event "22nd Hoogeveen Open 2018"]
[Site "Hoogeveen"]
[Date "2018.10.27"]
[Round "9"]
[White "Minko, Dmitry"]
[Black "Li, Henry"]
[Result "1/2-1/2"]
[ECO "C47"]
[WhiteElo "2011"]
[BlackElo "2207"]
[Annotator "NA"]
[PlyCount "53"]
[EventDate "2018.10.20"]
[EventType "swiss"]
[EventCountry "NED"]
[SourceTitle "playchess.com"]
[Source "ChessBase"]
[SourceQuality "1"]
[TimeControl "40/5400+30:1800+30"]

{[%evp 21,52,0,21,32767,32767,32767,32767,17,20,18,36,-8,-4,-6,0,-39,-33,-32,-29,-31,-41,-41,-14,-23,-20,32767,32767,32767,32767,-12,-25,-11,-8]} 1. e4 {[%emt 0:00:00]} e5 {[%emt 0:00:00]} 2. Nf3 {[%emt 0:00:00]} Nc6 {[%emt 0:00:00]} 3. d4 {[%emt 0:00:00]} exd4 {[%emt 0:00:00]} 4. Nxd4 {[%emt 0:00:00]} Nf6 {[%emt 0:00:00]} 5. Nc3 {[%emt 0:00:00]} Bb4 {[%emt 0:00:03]} 6. Nxc6 {[%emt 0:00:07]} bxc6 {[%emt 0:00:05]} 7. Bd3 {[%emt 0:00:04]} d5 {[%emt 0:00:08]} 8. exd5 {[%emt 0:00:07]} O-O {[%emt 0:00:06]} 9. O-O {[%emt 0:00:07]} cxd5 {[%emt 0:00:03]} 10. Bg5 {[%emt 0:00:05]} c6 {[%emt 0:00:09]} 11. Qf3 {[%emt 0:00:31]} ({Much worse is} 11. Bxf6 Qxf6 12. Ne2 Bd6 $17) 11... h6 {[%emt 0:00:21]} 12. Bxf6 {[%emt 0:01:26]} Qxf6 {[%emt 0:00:04]} 13. Qxf6 {[%emt 0:00:05]} gxf6 {[%emt 0:00:04]} 14. Ne2 {[%emt 0:00:41]} Re8 {[%emt 0:10:41] LiveBook: 20 Games C47: Scotch Four Knights and Four Knights with 4 g3} (14... Bd6 15. Nd4 c5 16. Nf5 Bxf5 17. Bxf5 Be5 18. Rad1 Bxb2 19. Rxd5 Bd4 20. c3 Bxc3 21. Rxc5 Bd4 22. Rc4 Rfd8 23. Rfc1 Bb6 24. Rc8 Raxc8 25. Rxc8 Rxc8 26. Bxc8 {½-½ (26) Ganguly,S (2650)-Harikrishna,P (2744) Riadh 2017}) 15. c3 {[%emt 0:01:45]} Bf8 {[%emt 0:05:17]} 16. Nd4 $146 {[%emt 0:04:45]} ({Predecessor:} 16. Ng3 Re5 17. Rfe1 Bd7 18. f4 Ree8 19. Nh5 Be7 20. f5 Kf8 21. Kh1 Bd8 22. Rxe8+ Bxe8 {0-1 (57) Richterova,N (2186)-Sieber,F (2268) Germany 2017}) 16... c5 {[%emt 0:10:31]} 17. Nb5 {[%emt 0:14:26]} Rb8 {[%emt 0:09:03]} 18. b3 {[%emt 0:01:58]} Rb7 {[%emt 0:11:46]} 19. c4 {[%emt 0:06:07]} d4 {[%emt 0:01:01]} 20. Rfe1 {[%emt 0:00:39]} Re6 {[%emt 0:04:34]} 21. f4 {[%emt 0:14:41]} Rbe7 {[%emt 0:03:56]} 22. Kf2 {[%emt 0:04:29]} a6 {[%emt 0:08:30]} 23. Rxe6 {[%emt 0:15:27]} fxe6 {[%emt 0:00:20]} 24. Nd6 {[%emt 0:00:09]} Bd7 {[%emt 0:02:53]} 25. f5 {[%emt 0:02:17]} exf5 {[%emt 0:01:33]} 26. Nxf5 {[%emt 0:02:59]} Re5 $11 {[%emt 0:00:28]} 27. g4 {[%emt 0:00:51]} 1/2-1/2

[Event "22nd Hoogeveen Open 2018"]
[Site "Hoogeveen"]
[Date "2018.10.27"]
[Round "9"]
[White "Klaren, Duncan"]
[Black "Wedda, Dries"]
[Result "0-1"]
[ECO "B93"]
[WhiteElo "1950"]
[BlackElo "2216"]
[Annotator "NA"]
[PlyCount "134"]
[EventDate "2018.10.20"]
[EventType "swiss"]
[EventCountry "NED"]
[SourceTitle "playchess.com"]
[Source "ChessBase"]
[SourceQuality "1"]
[TimeControl "40/5400+30:1800+30"]

1. e4 {[%emt 0:00:00]} c5 {[%emt 0:00:00]} 2. Nf3 {[%emt 0:00:00]} d6 {[%emt 0:00:00]} 3. d4 {[%emt 0:00:00]} cxd4 {[%emt 0:00:00]} 4. Nxd4 {[%emt 0:00:00]} Nf6 {[%emt 0:00:00]} 5. Nc3 {[%emt 0:00:00]} a6 {[%emt 0:00:00]} 6. f4 {[%emt 0:00:01]} e5 {[%emt 0:00:00]} 7. Nf3 {[%emt 0:00:04]} Nbd7 {[%emt 0:00:00]} 8. a4 {[%emt 0:00:03]} Be7 {[%emt 0:00:14]} 9. Bd3 {[%emt 0:01:40]} O-O {[%emt 0:05:57]} 10. O-O {[%emt 0:00:06]} exf4 {[%emt 0:21:29]} 11. Bxf4 {[%emt 0:01:39]} Qc7 {[%emt 0:02:16]} 12. Kh1 {[%emt 0:02:49]} Ne5 {[%emt 0:03:57] LiveBook: 53 Games} 13. Bg5 {[%emt 0:04:47]} Be6 {[%emt 0:04:28]} 14. Nd4 {[%emt 0:00:28]} Nfg4 {[%emt 0:15:37]} 15. Bxe7 {[%emt 0:03:58]} Qxe7 {[%emt 0:00:33]} 16. Qe1 {[%emt 0:04:29]} Qg5 {[%emt 0:08:48]} 17. Qg3 {[%emt 0:02:22]} Nxd3 {[%emt 0:02:16]} 18. cxd3 {[%emt 0:01:09]} Qe5 {[%emt 0:00:07]} 19. Qxe5 {[%emt 0:08:44]} dxe5 {[%emt 0:00:16]} 20. Nxe6 {[%emt 0:04:06]} fxe6 {[%emt 0:00:01]} 21. Kg1 {[%emt 0:03:42]} Rad8 {[%emt 0:05:35]} 22. Rf3 {[%emt 0:03:16]} Rxf3 {[%emt 0:03:59]} 23. gxf3 {[%emt 0:00:06]} Ne3 {[%emt 0:00:56]} 24. Kf2 {[%emt 0:00:14]} Nc2 {[%emt 0:00:20]} 25. Rd1 {[%emt 0:00:15]} h6 {[%emt 0:01:25]} 26. Ne2 {[%emt 0:05:18]} g5 {[%emt 0:03:40]} 27. Rd2 {[%emt 0:03:16]} Nd4 {[%emt 0:00:04]} 28. Nxd4 {[%emt 0:01:38]} Rxd4 {[%emt 0:00:07]} 29. Ke3 {[%emt 0:01:06]} (29. a5 $11 {remains equal.}) 29... Rb4 {[%emt 0:14:19]} 30. Rc2 {[%emt 0:00:52]} Kf7 {[%emt 0:03:34]} 31. Rc7+ {[%emt 0:00:34]} Kf6 $11 {[%emt 0:00:20]} 32. Rh7 {[%emt 0:01:04]} Kg6 {[%emt 0:00:08]} 33. Re7 {[%emt 0:00:05]} Kf6 {[%emt 0:02:04]} 34. Rh7 {[%emt 0:00:05]} Rxb2 {[%emt 0:00:26]} 35. Rxh6+ {[%emt 0:00:03]} Ke7 {[%emt 0:00:13]} 36. Rg6 {[%emt 0:00:42]} Rxh2 {[%emt 0:00:31]} 37. Rg7+ {[%emt 0:00:03]} Kf6 {[%emt 0:00:32]} 38. Rxb7 {[%emt 0:00:15]} Ra2 {[%emt 0:00:05]} 39. Rb4 {[%emt 0:00:17]} Kf7 {[%emt 0:01:54]} 40. Rb7+ {[%emt 0:00:19]} Kf6 {[%emt 0:00:05]} 41. Rb4 {[%emt 0:30:05]} a5 {[%emt 0:09:06]} 42. Rc4 {[%emt 0:00:00]} Ke7 {[%emt 0:00:05]} 43. Rc7+ {[%emt 0:00:00]} Kd6 {[%emt 0:01:53]} 44. Rc4 {[%emt 0:00:00]} Rb2 {[%emt 0:03:54]} 45. Rc3 {[%emt 0:00:00]} Rb4 {[%emt 0:00:53]} 46. Ra3 {[%emt 0:00:00]} Ke7 {[%emt 0:03:20]} 47. Ra1 {[%emt 0:00:00]} Kd6 {[%emt 0:01:52]} 48. Ra3 {[%emt 0:00:00]} Rb1 {[%emt 0:03:29]} 49. Rc3 {[%emt 0:00:00]} Ra1 {[%emt 0:03:06]} 50. Rc4 {[%emt 0:00:00]} Ra2 {[%emt 0:00:03]} 51. d4 {[%emt 0:00:00]} Ra3+ {[%emt 0:00:09]} 52. Ke2 {[%emt 0:00:00]} exd4 {[%emt 0:00:22]} 53. Rxd4+ {[%emt 0:00:00]} Ke5 {[%emt 0:03:28]} 54. Rc4 {[%emt 0:00:00]} Kf4 {[%emt 0:00:04]} 55. e5+ {[%emt 0:00:00]} Kf5 {[%emt 0:01:17]} 56. Re4 {[%emt 0:00:00]} Rc3 {[%emt 0:01:11]} 57. Rg4 {[%emt 0:00:00]} Rc5 {[%emt 0:01:33]} 58. Kd3 {[%emt 0:00:00]} Rxe5 {[%emt 0:00:20]} 59. Rc4 {[%emt 0:00:03]} Rd5+ {[%emt 0:01:13]} 60. Ke3 {[%emt 0:00:56]} e5 {[%emt 0:00:24]} 61. Rc6 {[%emt 0:00:47]} Rd4 {[%emt 0:00:11]} 62. Rc5 {[%emt 0:01:22]} Rxa4 {[%emt 0:00:05]} 63. Rc3 {[%emt 0:00:28]} Ra1 {[%emt 0:00:14]} 64. Rc5 {[%emt 0:01:30]} a4 {[%emt 0:00:13]} 65. Ra5 {[%emt 0:00:03]} Ra3+ {[%emt 0:01:06]} 66. Kf2 {[%emt 0:00:37]} Kf4 {[%emt 0:00:07]} 67. Kg2 {[%emt 0:00:03]} Ra2+ {[%emt 0:00:12]} 0-1

[Event "22nd Hoogeveen Open 2018"]
[Site "Hoogeveen"]
[Date "2018.10.27"]
[Round "9"]
[White "Maters, Arthur"]
[Black "Kokje, Joris"]
[Result "0-1"]
[ECO "B92"]
[WhiteElo "1933"]
[BlackElo "2232"]
[Annotator "NA"]
[PlyCount "94"]
[EventDate "2018.10.20"]
[EventType "swiss"]
[EventCountry "NED"]
[SourceTitle "playchess.com"]
[Source "ChessBase"]
[SourceQuality "1"]
[TimeControl "40/5400+30:1800+30"]

1. e4 {[%emt 0:00:00]} c5 {[%emt 0:00:00]} 2. Nf3 {[%emt 0:00:00]} d6 {[%emt 0:00:21]} 3. d4 {[%emt 0:00:00]} cxd4 {[%emt 0:00:10]} 4. Nxd4 {[%emt 0:00:00]} Nf6 {[%emt 0:00:09]} 5. Nc3 {[%emt 0:00:00]} a6 {[%emt 0:00:04]} 6. Be2 {[%emt 0:00:00]} e5 {[%emt 0:00:20]} 7. Nf3 {[%emt 0:00:00]} h6 {[%emt 0:02:32]} 8. Nd2 {[%emt 0:00:28] B92: Sicilian Najdorf: 6 Be2} Be6 {[%emt 0:04:36]} 9. Nc4 {[%emt 0:07:12]} Nc6 {[%emt 0:09:26]} 10. Be3 {[%emt 0:07:12]} (10. Ne3 Ne7 11. O-O Rc8 12. Bf3 g6 13. Qd3 Bg7 14. Rd1 Rc6 15. b3 Qc8 {1-0 (48) Vachier Lagrave,M (2789)-Korobov,A (2652) Riadh 2017}) 10... b5 $146 {[%emt 0:04:10] [#]} ({Predecessor:} 10... Be7 11. O-O O-O 12. Nb6 Rb8 13. Qd2 Qc7 14. Ncd5 Bxd5 15. Nxd5 {1-0 (28) Borodin,S (1805)-Villar,J (933) LSS email 2013}) 11. Nb6 $1 {[%emt 0:03:37]} Rb8 {[%emt 0:03:46]} 12. Nbd5 {[%emt 0:00:17]} g6 {[%emt 0:08:53]} (12... Be7 $16) 13. Nxf6+ {[%emt 0:05:31]} Qxf6 {[%emt 0:00:07]} 14. Nd5 {[%emt 0:00:09]} Qd8 {[%emt 0:02:52]} 15. O-O {[%emt 0:00:31]} Bg7 {[%emt 0:01:40]} 16. a4 {[%emt 0:03:02]} O-O {[%emt 0:02:58]} 17. c3 {[%emt 0:14:14]} Ne7 {[%emt 0:09:53] [#]} ({Black should try} 17... bxa4 18. Rxa4 (18. Bxa6 Rxb2 19. Rxa4 Ne7 $14) (18. Qxa4 Bxd5 19. exd5 Ne7 $14) 18... Rxb2) 18. axb5 {[%emt 0:09:26]} (18. Nb4 $1 $16) 18... Bxd5 $1 {[%emt 0:01:16]} 19. exd5 {[%emt 0:00:14]} axb5 {[%emt 0:00:05]} 20. Qd2 {[%emt 0:05:08]} Kh7 {[%emt 0:11:41]} 21. Bd3 {[%emt 0:02:13]} (21. g4 $16) 21... f5 {[%emt 0:02:02]} 22. f3 {[%emt 0:00:20]} ({White should try} 22. g3 $14) 22... Nxd5 {[%emt 0:02:26]} 23. Ba7 {[%emt 0:03:29]} Rb7 {[%emt 0:00:27]} 24. Bxb5 {[%emt 0:02:30]} Nb6 {[%emt 0:07:16]} (24... Rxb5 $17 25. c4 Rb7 26. cxd5 Qf6) 25. Bc6 {[%emt 0:09:07]} Nc4 {[%emt 0:00:31]} 26. Qe2 {[%emt 0:00:50]} Rxa7 $1 {[%emt 0:00:15]} 27. Qxc4 $2 {[%emt 0:00:34]} (27. Rxa7 $17 Qb6+ 28. Kh1 Qxc6 29. b3) 27... Qb6+ {[%emt 0:00:29]} 28. Kh1 {[%emt 0:00:01] [#]} Rxa1 $19 {[%emt 0:05:20]} 29. Rxa1 {[%emt 0:00:06]} Qxb2 {[%emt 0:02:52]} 30. Rd1 {[%emt 0:05:38]} Qc2 {[%emt 0:02:31]} 31. Qd3 {[%emt 0:01:35]} Qxd3 {[%emt 0:01:06]} 32. Rxd3 {[%emt 0:00:11]} e4 {[%emt 0:04:56]} 33. Rxd6 {[%emt 0:08:16]} e3 {[%emt 0:00:18]} 34. Re6 {[%emt 0:00:56]} f4 {[%emt 0:06:11]} 35. Be4 {[%emt 0:02:29]} Rd8 {[%emt 0:02:15]} 36. Bxg6+ {[%emt 0:00:52]} Kg8 {[%emt 0:00:31]} 37. g3 {[%emt 0:00:17]} Bxc3 {[%emt 0:01:55]} 38. gxf4 {[%emt 0:01:57]} Rd1+ {[%emt 0:00:11]} 39. Kg2 {[%emt 0:00:07]} Rd2+ {[%emt 0:00:15]} 40. Kf1 {[%emt 0:00:09]} Rf2+ {[%emt 0:00:17]} 41. Kg1 {[%emt 0:30:10]} Bd4 {[%emt 0:30:59]} 42. Bd3 {[%emt 0:07:09]} e2 {[%emt 0:00:34]} 43. Bc4 {[%emt 0:00:01]} Kf8 {[%emt 0:00:00]} 44. Rf6+ {[%emt 0:00:00]} Ke7 {[%emt 0:00:00]} 45. Rf7+ {[%emt 0:00:00]} Ke8 {[%emt 0:00:00]} 46. Bxe2 {[%emt 0:00:00]} Rxe2+ {[%emt 0:00:00]} 47. Kf1 {[%emt 0:00:00]} Rf2+ {[%emt 0:00:00]} 0-1

[Event "22nd Hoogeveen Open 2018"]
[Site "Hoogeveen"]
[Date "2018.10.27"]
[Round "9"]
[White "Shakhverdian, William"]
[Black "Brands, Kevin"]
[Result "1/2-1/2"]
[ECO "D85"]
[WhiteElo "1903"]
[BlackElo "1862"]
[Annotator "NA"]
[PlyCount "72"]
[EventDate "2018.10.20"]
[EventType "swiss"]
[EventCountry "NED"]
[SourceTitle "playchess.com"]
[Source "ChessBase"]
[SourceQuality "1"]
[TimeControl "40/5400+30:1800+30"]

1. d4 {[%emt 0:00:00]} Nf6 {[%emt 0:00:00]} 2. c4 {[%emt 0:00:00]} g6 {[%emt 0:00:00]} 3. Nc3 {[%emt 0:00:00]} d5 {[%emt 0:00:01]} 4. cxd5 {[%emt 0:00:09]} Nxd5 {[%emt 0:00:04]} 5. e4 {[%emt 0:00:10]} Nxc3 {[%emt 0:00:08]} 6. bxc3 {[%emt 0:00:07]} Bg7 {[%emt 0:00:19]} 7. Be3 {[%emt 0:00:05]} c5 {[%emt 0:00:06]} 8. Qd2 {[%emt 0:00:14]} cxd4 {[%emt 0:00:49] LiveBook: 142 Games} 9. cxd4 {[%emt 0:00:07]} Nc6 {[%emt 0:00:26]} 10. Rd1 {[%emt 0:01:37]} O-O {[%emt 0:02:58]} 11. h3 {[%emt 0:01:00] D85: Exchange Grünfeld: Unusual White 7th moves and lines with 7 Nf3} (11. Nf3 Bg4 12. Be2 Rc8 13. O-O Qa5 14. h3 Bxf3 15. Bxf3 Qxd2 16. Rxd2 Na5 17. e5 Nc4 18. Rd3 Nxe3 19. fxe3 Rc7 20. Be4 Rfc8 21. Rb3 {½-½ (29) Anand,V (2811)-Carlsen,M (2826) Moscow 2011}) 11... Qa5 {[%emt 0:10:12]} 12. Qxa5 {[%emt 0:06:09]} Nxa5 {[%emt 0:00:45]} 13. Nf3 $146 {[%emt 0:04:48]} ({Predecessor:} 13. Rc1 Bd7 14. Rc5 b6 15. Rc7 Rfd8 16. Nf3 Bc6 17. d5 Bb7 18. Bb5 Rac8 19. Rxe7 {0-1 (41) Vukic,A (2142)-Trbojevic,M (2361) Croatia 2015}) 13... Rd8 {[%emt 0:04:06]} 14. Be2 {[%emt 0:04:59]} Bd7 {[%emt 0:10:05]} 15. O-O {[%emt 0:05:22]} Rac8 {[%emt 0:08:34]} 16. Rc1 {[%emt 0:00:52]} b5 {[%emt 0:01:50]} 17. d5 {[%emt 0:07:02]} Nc4 {[%emt 0:07:46]} 18. Bxa7 {[%emt 0:03:58]} Ra8 {[%emt 0:05:47]} 19. Bd4 {[%emt 0:04:23]} Rxa2 {[%emt 0:00:36]} 20. Bxc4 {[%emt 0:01:06]} bxc4 {[%emt 0:00:05]} 21. Bxg7 {[%emt 0:00:31]} Kxg7 {[%emt 0:00:08]} 22. Rfd1 {[%emt 0:05:41]} Rb8 {[%emt 0:04:17]} 23. Rd2 {[%emt 0:00:21]} Ra4 $14 {[%emt 0:10:22]} 24. Rc3 {[%emt 0:09:47]} Rb3 {[%emt 0:07:21]} 25. Rdc2 {[%emt 0:00:43]} Bb5 {[%emt 0:04:34]} 26. Nd2 {[%emt 0:04:33]} Rxc3 {[%emt 0:00:32]} 27. Rxc3 {[%emt 0:00:05]} Ra1+ {[%emt 0:00:29]} 28. Kh2 {[%emt 0:00:29]} Ra2 {[%emt 0:01:44]} 29. Nxc4 {[%emt 0:00:37]} Rxf2 {[%emt 0:01:48]} 30. Kg3 {[%emt 0:00:33]} Ra2 {[%emt 0:01:11]} 31. Ne3 {[%emt 0:04:31]} Ra4 {[%emt 0:08:17]} 32. Kf3 {[%emt 0:00:19]} Ra7 {[%emt 0:01:37]} 33. Rc5 {[%emt 0:00:21]} Bd3 {[%emt 0:01:09]} 34. Rc3 {[%emt 0:01:46]} Bb5 {[%emt 0:00:37]} 35. Rb3 {[%emt 0:00:31]} Rb7 {[%emt 0:01:28]} 36. Rc3 {[%emt 0:00:37]} Ra7 {[%emt 0:04:25]} 1/2-1/2

[Event "22nd Hoogeveen Open 2018"]
[Site "Hoogeveen"]
[Date "2018.10.27"]
[Round "9"]
[White "Oord, Raymon"]
[Black "Emans, Job"]
[Result "1/2-1/2"]
[ECO "D37"]
[WhiteElo "1900"]
[BlackElo "1927"]
[Annotator "NA"]
[PlyCount "115"]
[EventDate "2018.10.20"]
[EventType "swiss"]
[EventCountry "NED"]
[SourceTitle "playchess.com"]
[Source "ChessBase"]
[SourceQuality "1"]
[TimeControl "40/5400+30:1800+30"]

1. c4 {[%emt 0:00:00]} e6 {[%emt 0:00:00]} 2. Nc3 {[%emt 0:00:00]} d5 {[%emt 0:00:00]} 3. d4 {[%emt 0:00:00]} Nf6 {[%emt 0:00:00]} 4. e3 {[%emt 0:00:03]} Be7 {[%emt 0:00:06]} 5. Nf3 {[%emt 0:00:20]} Nbd7 {[%emt 0:00:25] LiveBook: 157 Games} 6. cxd5 {[%emt 0:00:58]} exd5 {[%emt 0:00:21]} 7. Bd3 {[%emt 0:01:24] D37: Queen's Gambit Declined: 5 Bf4} O-O {[%emt 0:00:45]} (7... c6 8. O-O O-O 9. Bd2 Re8 10. Qc2 Nf8 11. h3 Bd6 12. a3 a5 13. e4 dxe4 14. Nxe4 Nxe4 15. Bxe4 Be7 16. b4 a4 {0-1 (59) Ionescu,I (2181)-Houska,J (2383) Mamaia 2016}) 8. O-O {[%emt 0:01:50]} Re8 {[%emt 0:00:31]} 9. b3 {[%emt 0:01:01]} c6 {[%emt 0:01:00]} 10. Bb2 {[%emt 0:00:48]} Bd6 {[%emt 0:00:32]} 11. Rc1 {[%emt 0:01:51]} Nf8 {[%emt 0:00:46]} 12. Re1 {[%emt 0:02:06]} Ng6 {[%emt 0:02:43]} 13. e4 {[%emt 0:08:45]} Bf4 $146 {[%emt 0:01:21]} ({Predecessor:} 13... dxe4 14. Nxe4 Nxe4 15. Rxe4 Be6 16. Qc2 Qd7 17. Rce1 Bd5 18. Rxe8+ Rxe8 19. Rxe8+ Qxe8 {0-1 (55) Jeric,T (1907)-Hrenic,M (1810) Celje 2004}) 14. Nd2 $2 {[%emt 0:13:54] [#]} (14. Rc2 $11 {and White is okay.}) 14... dxe4 $2 {[%emt 0:04:17]} (14... Bxh2+ $1 $19 {[%mdl 512]} 15. Kf1 (15. Kxh2 $2 Ng4+ 16. Kg1 Qh4 $19) 15... Nf4) 15. Ncxe4 {[%emt 0:01:09]} Nd5 {[%emt 0:00:11]} 16. g3 {[%emt 0:04:11]} Bc7 {[%emt 0:11:17]} 17. Qh5 {[%emt 0:08:12]} Bd7 {[%emt 0:13:28]} 18. Nc4 {[%emt 0:19:06]} b5 {[%emt 0:10:27] [#]} ({Black should try} 18... Be6 $14) 19. Ne5 $16 {[%emt 0:11:23]} Bxe5 {[%emt 0:04:52]} 20. dxe5 {[%emt 0:01:05]} Nb4 {[%emt 0:01:24]} 21. Bb1 {[%emt 0:04:12]} Be6 {[%emt 0:11:00]} 22. Ng5 {[%emt 0:12:43]} h6 {[%emt 0:00:52]} 23. Nxe6 {[%emt 0:00:39]} Rxe6 {[%emt 0:00:08]} 24. Bf5 {[%emt 0:00:43]} Qe7 {[%emt 0:03:58]} 25. Bxe6 {[%emt 0:01:31]} Qxe6 {[%emt 0:00:03]} 26. Rcd1 {[%emt 0:00:28]} Nd5 {[%emt 0:02:24]} 27. f4 {[%emt 0:00:52]} Nge7 {[%emt 0:00:52]} 28. Qf3 {[%emt 0:00:40]} Qg6 {[%emt 0:04:41]} 29. Bd4 {[%emt 0:00:44]} h5 {[%emt 0:06:07]} 30. Kh1 {[%emt 0:00:30]} a6 {[%emt 0:01:41]} 31. Bc5 {[%emt 0:00:57]} Nf5 {[%emt 0:00:50]} 32. Bf2 {[%emt 0:01:25]} Re8 {[%emt 0:02:06]} 33. h3 {[%emt 0:00:10]} Nh6 {[%emt 0:00:39]} 34. Qd3 {[%emt 0:00:47]} Qe6 {[%emt 0:00:24]} 35. Kh2 {[%emt 0:00:16]} Re7 {[%emt 0:03:36]} 36. Qf3 {[%emt 0:00:28]} g6 {[%emt 0:00:42]} 37. Rc1 {[%emt 0:00:24]} Kh7 {[%emt 0:03:05]} 38. Rc5 {[%emt 0:00:35]} Rc7 {[%emt 0:00:47]} 39. Rec1 {[%emt 0:00:25]} Rc8 {[%emt 0:00:31]} 40. a3 {[%emt 0:00:25]} Nf5 {[%emt 0:02:02]} 41. a4 {[%emt 0:10:10]} Nfe7 {[%emt 0:00:42]} 42. axb5 {[%emt 0:00:32]} axb5 {[%emt 0:00:05]} 43. Ra1 {[%emt 0:01:09]} Qf5 {[%emt 0:02:01]} 44. Ra7 {[%emt 0:03:52]} Rd8 {[%emt 0:01:27]} 45. Rc1 {[%emt 0:02:06]} Nc8 {[%emt 0:07:56]} 46. Rb7 {[%emt 0:02:49]} Nb4 {[%emt 0:00:51]} 47. g4 {[%emt 0:07:11]} hxg4 {[%emt 0:06:16]} 48. hxg4 {[%emt 0:00:09]} Rd3 {[%emt 0:00:47]} 49. gxf5 {[%emt 0:02:49]} Rxf3 {[%emt 0:00:03]} 50. Bg3 {[%emt 0:02:12]} gxf5 {[%emt 0:02:42]} 51. Rxf7+ {[%emt 0:00:35]} Kg8 {[%emt 0:00:28]} 52. Rxf5 {[%emt 0:00:17]} Ne7 {[%emt 0:00:42]} 53. Rg5+ {[%emt 0:00:36]} Kf7 {[%emt 0:00:03]} 54. Ra1 {[%emt 0:01:24]} Nbd5 {[%emt 0:00:36]} 55. Kg2 {[%emt 0:01:21]} Rxb3 {[%emt 0:00:03]} 56. f5 {[%emt 0:00:57]} Ne3+ {[%emt 0:00:43]} 57. Kh2 {[%emt 0:00:19]} N3xf5 {[%emt 0:00:45]} 58. Rf1 {[%emt 0:03:34]} 1/2-1/2

[Event "22nd Hoogeveen Open 2018"]
[Site "Hoogeveen"]
[Date "2018.10.27"]
[Round "9"]
[White "Kutchoukov, Daniel"]
[Black "Bleeker, Kasper"]
[Result "0-1"]
[ECO "C47"]
[WhiteElo "1882"]
[BlackElo "1891"]
[Annotator "NA"]
[PlyCount "74"]
[EventDate "2018.10.20"]
[EventType "swiss"]
[EventCountry "NED"]
[SourceTitle "playchess.com"]
[Source "ChessBase"]
[SourceQuality "1"]
[TimeControl "40/5400+30:1800+30"]

1. e4 {[%emt 0:00:00]} e5 {[%emt 0:01:05]} 2. Nf3 {[%emt 0:00:00]} Nc6 {[%emt 0:00:06]} 3. Nc3 {[%emt 0:00:00]} Nf6 {[%emt 0:00:05]} 4. Be2 {[%emt 0:00:00]} Be7 {[%emt 0:02:29]} 5. d4 {[%emt 0:00:10]} exd4 {[%emt 0:01:47]} 6. Nxd4 {[%emt 0:00:52]} O-O {[%emt 0:13:40]} 7. Be3 {[%emt 0:02:36]} Bb4 {[%emt 0:01:27]} 8. f3 {[%emt 0:30:25]} d5 {[%emt 0:05:05]} 9. exd5 {[%emt 0:22:33]} (9. Nxc6 $11 {bleibt in der Remisbreite.} bxc6 10. O-O) 9... Nxd5 {[%emt 0:12:00]} 10. Nxc6 {[%emt 0:02:34]} bxc6 {[%emt 0:00:32]} 11. Bd2 {[%emt 0:01:17]} Nxc3 {[%emt 0:06:51]} 12. Bxc3 {[%emt 0:01:53]} Bxc3+ {[%emt 0:00:05]} 13. bxc3 {[%emt 0:01:52]} Qh4+ {[%emt 0:01:01]} 14. g3 {[%emt 0:01:44]} Qe7 $15 {[%emt 0:01:47]} 15. Kf2 {[%emt 0:13:16]} Bh3 {[%emt 0:03:34]} 16. Bf1 {[%emt 0:11:46]} Rad8 {[%emt 0:03:46]} 17. Qe1 {[%emt 0:02:07]} Qc5+ {[%emt 0:02:56]} 18. Qe3 {[%emt 0:00:04]} Rd2+ {[%emt 0:01:49]} 19. Be2 {[%emt 0:00:13]} Qxe3+ {[%emt 0:00:31]} 20. Kxe3 {[%emt 0:00:04]} Rxc2 {[%emt 0:00:43]} 21. Bd3 {[%emt 0:03:27]} Rxc3 {[%emt 0:00:33]} 22. Kd2 {[%emt 0:01:23]} Ra3 {[%emt 0:01:24]} 23. Be4 {[%emt 0:00:52]} Bg2 {[%emt 0:04:01]} 24. Rhc1 {[%emt 0:00:29]} Bxf3 {[%emt 0:01:38]} 25. Bxf3 {[%emt 0:00:09]} Rxf3 {[%emt 0:00:02]} 26. Rxc6 {[%emt 0:00:06]} Rf2+ {[%emt 0:00:34]} 27. Ke3 {[%emt 0:00:12]} Rxh2 {[%emt 0:02:05]} 28. Rxc7 {[%emt 0:00:07]} a5 {[%emt 0:00:51]} 29. Ra7 {[%emt 0:01:39]} Rh5 {[%emt 0:01:43]} 30. Rb1 {[%emt 0:00:32]} g6 {[%emt 0:00:30]} 31. a4 {[%emt 0:00:34]} Re8+ {[%emt 0:01:04]} 32. Kd4 {[%emt 0:01:02]} Re6 {[%emt 0:04:58]} 33. Rbb7 {[%emt 0:01:52]} Rf6 {[%emt 0:01:39]} 34. Rb5 {[%emt 0:00:37]} Rh3 {[%emt 0:02:27]} 35. Raxa5 {[%emt 0:00:27]} Rxg3 {[%emt 0:01:13]} 36. Ra8+ {[%emt 0:00:25]} Kg7 {[%emt 0:00:04]} 37. a5 {[%emt 0:00:05]} Rf4+ {[%emt 0:01:18]} 0-1